fUST/lending_fUST_20250221
["ID","MTS","AMOUNT","RATE_DAILY","PERIOD"]
[353835059,1740084642542,-500.0,0.00013863,2]
[353835060,1740084642551,-500.0,0.00013863,2]
[353835061,1740084642561,-500.0,0.00013863,2]
[353835062,1740084642570,-500.0,0.00013863,2]
[353835063,1740084642580,-500.0,0.00013863,2]
[353835064,1740084642589,-500.0,0.00013863,2]
[353835065,1740084642599,-500.0,0.00013863,2]
[353835066,1740084642609,-500.0,0.00013863,2]
[353835067,1740084642620,-500.0,0.00013863,2]
[353835068,1740084642629,-500.0,0.00013863,2]
[353835069,1740084642639,-500.0,0.00013863,2]
[353835070,1740084642649,-500.0,0.00013863,2]
[353835071,1740084642659,-500.0,0.00013863,2]
[353835072,1740084642669,-500.0,0.00013863,2]
[353835073,1740084642678,-500.0,0.00013863,2]
[353835074,1740084642688,-500.0,0.00013863,2]
[353835075,1740084642698,-500.0,0.00013863,2]
[353835076,1740084642707,-500.0,0.00013863,2]
[353835077,1740084642719,-500.0,0.00013863,2]
[353835078,1740084642729,-500.0,0.00013863,2]
[353835079,1740084642739,-542.08,0.00013863,2]
[353835080,1740084642748,-500.0,0.00013863,2]
[353835081,1740084642758,-500.0,0.00013863,2]
[353835082,1740084642767,-500.0,0.00013863,2]
[353835083,1740084642777,-500.0,0.00013863,2]
[353835084,1740084642786,-500.0,0.00013863,2]
[353835085,1740084642795,-547.65,0.00013863,2]
[353835086,1740084642805,-500.0,0.00013863,2]
[353835087,1740084642815,-508.8,0.00013863,2]
[353835088,1740084642825,-500.0,0.00013863,2]
[353835089,1740084642839,-500.0,0.00013863,2]
[353835090,1740084642848,-500.0,0.00013863,2]
[353835091,1740084642858,-500.0,0.00013863,2]
[353835092,1740084642868,-500.0,0.00013863,2]
[353835093,1740084642877,-500.0,0.00013863,2]
[353835094,1740084642887,-500.0,0.00013863,2]
[353835095,1740084642896,-500.0,0.00013863,2]
[353835096,1740084642906,-500.0,0.00013863,2]
[353835097,1740084642915,-500.0,0.00013863,2]
[353835098,1740084642924,-500.0,0.00013863,2]
[353835099,1740084642934,-215.34,0.00013863,2]
[353835100,1740084642943,-500.0,0.00013863,2]
[353835101,1740084642952,-500.0,0.00013863,2]
[353835102,1740084642961,-530.9174586,0.00013863,2]
[353835103,1740084642974,-500.0,0.00013863,2]
[353835104,1740084642983,-500.0,0.00013863,2]
[353835105,1740084642993,-500.0,0.00013863,2]
[353835106,1740084643002,-500.0,0.00013863,2]
[353835107,1740084643012,-500.0,0.00013863,2]
[353835108,1740084643021,-501.3842155,0.00013863,2]
[353835109,1740084643031,-500.0,0.00013863,2]
[353835110,1740084643041,-500.0,0.00013863,2]
[353835111,1740084643053,-500.0,0.00013863,2]
[353835112,1740084643063,-500.0,0.00013863,2]
[353835113,1740084643072,-500.0,0.00013863,2]
[353835114,1740084643081,-500.0,0.00013863,2]
[353835115,1740084643090,-500.0,0.00013863,2]
[353835116,1740084643099,-500.0,0.00013863,2]
[353835117,1740084643109,-500.0,0.00013863,2]
[353835118,1740084643119,-3486.02,0.00013863,2]
[353835119,1740084643129,-500.0,0.00013863,2]
[353835120,1740084643138,-570.83,0.00013863,2]
[353835121,1740084643147,-500.0,0.00013863,2]
[353835122,1740084643157,-530.13,0.00013863,2]
[353835123,1740084643166,-500.0,0.00013863,2]
[353835124,1740084643175,-500.0,0.00013863,2]
[353835125,1740084643184,-500.0,0.00013863,2]
[353835126,1740084643194,-500.0,0.00013863,2]
[353835127,1740084643203,-500.0,0.00013863,2]
[353835128,1740084643213,-502.31209803,0.00013863,2]
[353835129,1740084643222,-508.1135934,0.00013863,2]
[353835130,1740084643231,-21305.13,0.00013863,2]
[353835131,1740084643240,-480.08567143,0.00013863,2]
[353835132,1740084643250,-500.0,0.00013863,2]
[353835133,1740084643259,-1328.46,0.00013863,2]
[353835134,1740084643268,-815.99,0.00013863,2]
[353835135,1740084643281,-664.11,0.00013863,2]
[353835136,1740084643295,-506.93085562,0.00013863,2]
[353835137,1740084643310,-680.69,0.00013863,2]
[353835138,1740084643324,-500.0,0.00013863,2]
[353835139,1740084643335,-289.85111821,0.00013863,2]
[353835140,1740084643348,-1634.29,0.00013863,2]
[353835141,1740084643362,-503.7709852,0.00013863,2]
[353835142,1740084643380,-688.47,0.00013863,2]
[353835143,1740084643394,-1868.77,0.00013863,2]
[353835144,1740084643408,-500.0,0.00013863,2]
[353835145,1740084643421,-500.0,0.00013863,2]
[353835146,1740084643438,-500.0,0.00013863,2]
[353835147,1740084643453,-4052.8,0.00013863,2]
[353835148,1740084643467,-500.0,0.00013863,2]
[353835149,1740084643479,-500.0,0.00013863,2]
[353835150,1740084643492,-503.11989805,0.00013863,2]
[353835151,1740084643505,-665.71,0.00013863,2]
[353835153,1740084643520,-500.0,0.00013863,2]
[353835154,1740084643533,-2544.88,0.00013863,2]
[353835155,1740084643546,-500.0,0.00013863,2]
[353835156,1740084643557,-500.0,0.00013863,2]
[353835157,1740084643567,-2105.17,0.00013863,2]
[353835159,1740084643580,-500.0,0.00013863,2]
[353835161,1740084643593,-1364.24,0.00013863,2]
[353835163,1740084643606,-500.0,0.00013863,2]
[353835164,1740084643622,-500.0,0.00013863,2]
[353835165,1740084643636,-1068.86,0.00013863,2]
[353835166,1740084643649,-500.0,0.00013863,2]
[353835167,1740084643663,-500.0,0.00013863,2]
[353835168,1740084643676,-500.0,0.00013863,2]
[353835169,1740084643691,-850.98,0.00013863,2]
[353835170,1740084643702,-1207.04,0.00013863,2]
[353835171,1740084643713,-500.0,0.00013863,2]
[353835172,1740084643724,-1085.19,0.00013863,2]
[353835173,1740084643735,-500.0,0.00013863,2]
[353835175,1740084643748,-1390.83,0.00013863,2]
[353835178,1740084643762,-9513.21,0.00013863,2]
[353835180,1740084643775,-1084.98,0.00013863,2]
[353835182,1740084643786,-500.0,0.00013863,2]
[353835184,1740084643797,-500.0,0.00013863,2]
[353835186,1740084643810,-3708.56,0.00013863,2]
[353835187,1740084643823,-500.0,0.00013863,2]
[353835188,1740084643835,-1928.52,0.00013863,2]
[353835189,1740084643846,-500.0,0.00013863,2]
[353835191,1740084643856,-500.0,0.00013863,2]
[353835193,1740084643867,-629.31690969,0.00013863,2]
[353835194,1740084643878,-500.0,0.00013863,2]
[353835195,1740084643889,-500.0,0.00013863,2]
[353835196,1740084643902,-500.0,0.00013863,2]
[353835198,1740084643914,-500.0,0.00013863,2]
[353835200,1740084643925,-844.51,0.00013863,2]
[353835202,1740084643937,-500.0,0.00013863,2]
[353835203,1740084643948,-500.0,0.00013863,2]
[353835204,1740084643959,-500.0,0.00013863,2]
[353835206,1740084643972,-500.0,0.00013863,2]
[353835208,1740084643982,-500.0,0.00013863,2]
[353835209,1740084643994,-500.0,0.00013863,2]
[353835210,1740084644005,-500.0,0.00013863,2]
[353835211,1740084644017,-4636.66,0.00013863,2]
[353835212,1740084644028,-2224.68,0.00013863,2]
[353835213,1740084644039,-500.0,0.00013863,2]
[353835214,1740084644051,-9941.59,0.00013863,2]
[353835215,1740084644065,-500.0,0.00013863,2]
[353835216,1740084644077,-1184.99,0.00013863,2]
[353835217,1740084644088,-997.99,0.00013863,2]
[353835218,1740084644100,-500.0,0.00013863,2]
[353835219,1740084644111,-500.0,0.00013912,2]
[353835220,1740084644124,-500.0,0.00013945,2]
[353835221,1740084644135,-500.0,0.00013945,2]
[353835222,1740084644147,-500.0,0.00013945,2]
[353835223,1740084644158,-500.0,0.00013945,2]
[353835224,1740084644169,-500.0,0.00013945,2]
[353835225,1740084644180,-500.0,0.00013945,2]
[353835226,1740084644191,-500.0,0.00013945,2]
[353835227,1740084644202,-500.0,0.00013945,2]
[353835228,1740084644213,-500.0,0.00013945,2]
[353835229,1740084644225,-500.0,0.00013945,2]
[353835230,1740084644236,-500.0,0.00013945,2]
[353835231,1740084644247,-500.0,0.00013945,2]
[353835232,1740084644258,-500.0,0.00013945,2]
[353835233,1740084644269,-500.0,0.00013945,2]
[353835234,1740084644280,-547.65,0.00013945,2]
[353835235,1740084644291,-500.0,0.00013945,2]
[353835236,1740084644303,-508.8,0.00013945,2]
[353835237,1740084644314,-500.0,0.00013945,2]
[353835238,1740084644325,-500.0,0.00013945,2]
[353835239,1740084644336,-500.0,0.00013945,2]
[353835240,1740084644347,-500.0,0.00013945,2]
[353835241,1740084644359,-500.0,0.00013945,2]
[353835242,1740084644371,-500.0,0.00013945,2]
[353835243,1740084644382,-500.0,0.00013945,2]
[353835244,1740084644393,-500.0,0.00013945,2]
[353835245,1740084644404,-500.0,0.00013945,2]
[353835246,1740084644415,-500.0,0.00013945,2]
[353835247,1740084644426,-500.0,0.00013945,2]
[353835248,1740084644441,-505.43735776,0.00013945,2]
[353835249,1740084644452,-500.0,0.00013945,2]
[353835250,1740084644464,-500.0,0.00013945,2]
[353835251,1740084644474,-500.0,0.00013945,2]
[353835252,1740084644483,-500.0,0.00013945,2]
[353835253,1740084644493,-500.0,0.00013945,2]
[353835254,1740084644503,-500.0,0.00013945,2]
[353835255,1740084644514,-500.0,0.00013945,2]
[353835256,1740084644523,-516.24008181,0.00013945,2]
[353835257,1740084644533,-500.0,0.00013945,2]
[353835258,1740084644542,-500.0,0.00013945,2]
[353835259,1740084644551,-500.0,0.00013945,2]
[353835260,1740084644561,-500.0,0.00013945,2]
[353835261,1740084644571,-500.0,0.00013945,2]
[353835262,1740084644732,-3486.02,0.00013945,2]
[353835263,1740084644749,-570.83,0.00013945,2]
[353835264,1740084644759,-530.13,0.00013945,2]
[353835265,1740084644768,-500.0,0.00013945,2]
[353835266,1740084644778,-500.0,0.00013945,2]
[353835267,1740084644787,-500.0,0.00013945,2]
[353835268,1740084644797,-21305.13,0.00013945,2]
[353835269,1740084644806,-500.0,0.00013945,2]
[353835270,1740084644816,-1328.46,0.00013945,2]
[353835271,1740084644825,-815.99,0.00013945,2]
[353835272,1740084644835,-664.11,0.00013945,2]
[353835273,1740084644844,-680.69,0.00013945,2]
[353835274,1740084644854,-500.0,0.00013945,2]
[353835275,1740084644863,-1634.29,0.00013945,2]
[353835276,1740084644874,-688.47,0.00013945,2]
[353835277,1740084644883,-1868.77,0.00013945,2]
[353835278,1740084644892,-500.0,0.00013945,2]
[353835279,1740084644902,-500.0,0.00013945,2]
[353835280,1740084644911,-500.0,0.00013945,2]
[353835281,1740084644921,-4052.8,0.00013945,2]
[353835282,1740084644930,-500.0,0.00013945,2]
[353835283,1740084644939,-500.0,0.00013945,2]
[353835284,1740084644951,-665.71,0.00013945,2]
[353835285,1740084644960,-278.9838097,0.00013945,2]
[353835286,1740084644970,-2544.88,0.00013945,2]
[353835287,1740084644980,-500.0,0.00013945,2]
[353835288,1740084644990,-500.0,0.00013945,2]
[353835289,1740084645000,-2105.17,0.00013945,2]
[353835290,1740084645010,-500.0,0.00013945,2]
[353835291,1740084645019,-1364.24,0.00013945,2]
[353835292,1740084645028,-500.0,0.00013945,2]
[353835293,1740084645037,-500.0,0.00013945,2]
[353835294,1740084645048,-1068.86,0.00013945,2]
[353835295,1740084645058,-525.13,0.00013945,2]
[353835296,1740084645067,-500.0,0.00013945,2]
[353835297,1740084645077,-500.0,0.00013945,2]
[353835298,1740084645086,-850.98,0.00013945,2]
[353835299,1740084645096,-1207.04,0.00013945,2]
[353835300,1740084645105,-500.0,0.00013945,2]
[353835301,1740084645115,-1085.19,0.00013945,2]
[353835302,1740084645124,-500.0,0.00013945,2]
[353835303,1740084645134,-1390.83,0.00013945,2]
[353835304,1740084645144,-9513.21,0.00013945,2]
[353835305,1740084645153,-1084.98,0.00013945,2]
[353835306,1740084645163,-500.0,0.00013945,2]
[353835307,1740084645173,-500.0,0.00013945,2]
[353835308,1740084645183,-3708.56,0.00013945,2]
[353835309,1740084645192,-500.0,0.00013945,2]
[353835310,1740084645202,-1928.52,0.00013945,2]
[353835311,1740084645211,-500.0,0.00013945,2]
[353835312,1740084645220,-500.0,0.00013945,2]
[353835313,1740084645230,-500.0,0.00013945,2]
[353835314,1740084645239,-500.0,0.00013945,2]
[353835315,1740084645249,-472.62235027,0.00013945,2]
[353835316,1740084645258,-844.51,0.00013945,2]
[353835317,1740084645268,-500.0,0.00013945,2]
[353835318,1740084645277,-500.0,0.00013945,2]
[353835319,1740084645287,-500.0,0.00013945,2]
[353835320,1740084645296,-500.0,0.00013945,2]
[353835321,1740084645307,-500.0,0.00013945,2]
[353835322,1740084645317,-500.0,0.00013945,2]
[353835323,1740084645327,-500.0,0.00013945,2]
[353835324,1740084645336,-4636.66,0.00013945,2]
[353835325,1740084645346,-2224.68,0.00013945,2]
[353835326,1740084645355,-500.0,0.00013945,2]
[353835327,1740084645365,-9941.59,0.00013945,2]
[353835328,1740084645375,-1184.99,0.00013945,2]
[353835329,1740084645385,-997.99,0.00013945,2]
[353835330,1740084645395,-500.0,0.00013945,2]
[353835331,1740084645404,-500.0,0.00014027,2]
[353835332,1740084645414,-500.0,0.00014027,2]
[353835333,1740084645424,-500.0,0.00014027,2]
[353835334,1740084645437,-500.0,0.00014027,2]
[353835335,1740084645447,-500.0,0.00014027,2]
[353835336,1740084645456,-500.0,0.00014027,2]
[353835337,1740084645466,-500.0,0.00014027,2]
[353835338,1740084645476,-500.0,0.00014027,2]
[353835339,1740084645485,-500.0,0.00014027,2]
[353835340,1740084645495,-500.0,0.00014027,2]
[353835341,1740084645504,-500.0,0.00014027,2]
[353835342,1740084645516,-500.0,0.00014027,2]
[353835343,1740084645525,-500.0,0.00014027,2]
[353835344,1740084645535,-547.65,0.00014027,2]
[353835345,1740084645544,-215.98,0.00014027,2]
[353835346,1740084645554,-508.8,0.00014027,2]
[353835347,1740084645563,-500.0,0.00014027,2]
[353835348,1740084645573,-500.0,0.00014027,2]
[353835349,1740084645582,-500.0,0.00014027,2]
[353835350,1740084645592,-500.0,0.00014027,2]
[353835351,1740084645601,-500.0,0.00014027,2]
[353835352,1740084645610,-500.0,0.00014027,2]
[353835353,1740084645620,-500.0,0.00014027,2]
[353835354,1740084645629,-500.0,0.00014027,2]
[353835355,1740084645639,-500.0,0.00014027,2]
[353835356,1740084645648,-500.0,0.00014027,2]
[353835357,1740084645658,-500.0,0.00014027,2]
[353835358,1740084645668,-500.0,0.00014027,2]
[353835359,1740084645677,-500.0,0.00014027,2]
[353835360,1740084645687,-500.0,0.00014027,2]
[353835361,1740084645696,-500.0,0.00014027,2]
[353835362,1740084645706,-500.0,0.00014027,2]
[353835363,1740084645715,-500.0,0.00014027,2]
[353835364,1740084645725,-500.0,0.00014027,2]
[353835365,1740084645734,-500.0,0.00014027,2]
[353835366,1740084645744,-3486.02,0.00014027,2]
[353835367,1740084645754,-570.83,0.00014027,2]
[353835368,1740084645763,-530.13,0.00014027,2]
[353835369,1740084645772,-500.0,0.00014027,2]
[353835370,1740084645782,-456.27296596,0.00014027,2]
[353835371,1740084645791,-500.0,0.00014027,2]
[353835372,1740084645800,-21305.13,0.00014027,2]
[353835373,1740084645810,-500.0,0.00014027,2]
[353835374,1740084645819,-1328.46,0.00014027,2]
[353835375,1740084645829,-815.99,0.00014027,2]
[353835376,1740084645839,-664.11,0.00014027,2]
[353835377,1740084645848,-680.69,0.00014027,2]
[353835378,1740084645857,-500.0,0.00014027,2]
[353835379,1740084645867,-1634.29,0.00014027,2]
[353835380,1740084645876,-688.47,0.00014027,2]
[353835381,1740084645886,-1868.77,0.00014027,2]
[353835382,1740084645895,-500.0,0.00014027,2]
[353835383,1740084645905,-500.0,0.00014027,2]
[353835386,1740084645915,-4052.8,0.00014027,2]
[353835389,1740084645924,-500.0,0.00014027,2]
[353835391,1740084645934,-665.71,0.00014027,2]
[353835393,1740084645943,-2544.88,0.00014027,2]
[353835394,1740084645953,-500.0,0.00014027,2]
[353835396,1740084645963,-2105.17,0.00014027,2]
[353835398,1740084645973,-500.0,0.00014027,2]
[353835399,1740084645982,-1364.24,0.00014027,2]
[353835401,1740084645992,-500.0,0.00014027,2]
[353835403,1740084646001,-500.0,0.00014027,2]
[353835405,1740084646010,-1068.86,0.00014027,2]
[353835406,1740084646020,-500.0,0.00014027,2]
[353835408,1740084646030,-500.0,0.00014027,2]
[353835411,1740084646039,-850.98,0.00014027,2]
[353835413,1740084646050,-1207.04,0.00014027,2]
[353835414,1740084646059,-500.0,0.00014027,2]
[353835415,1740084646068,-1085.19,0.00014027,2]
[353835417,1740084646078,-500.0,0.00014027,2]
[353835419,1740084646087,-1390.83,0.00014027,2]
[353835420,1740084646096,-9513.21,0.00014027,2]
[353835422,1740084646105,-1084.98,0.00014027,2]
[353835424,1740084646115,-500.0,0.00014027,2]
[353835425,1740084646125,-3708.56,0.00014027,2]
[353835428,1740084646135,-500.0,0.00014027,2]
[353835431,1740084646146,-1928.52,0.00014027,2]
[353835432,1740084646156,-500.0,0.00014027,2]
[353835434,1740084646167,-500.0,0.00014027,2]
[353835436,1740084646176,-500.0,0.00014027,2]
[353835438,1740084646186,-500.0,0.00014027,2]
[353835440,1740084646196,-844.51,0.00014027,2]
[353835441,1740084646206,-500.0,0.00014027,2]
[353835443,1740084646215,-500.0,0.00014027,2]
[353835445,1740084646225,-500.0,0.00014027,2]
[353835446,1740084646235,-500.0,0.00014027,2]
[353835448,1740084646244,-496.55983966,0.00014027,2]
[353835450,1740084646253,-500.0,0.00014027,2]
[353835451,1740084646263,-500.0,0.00014027,2]
[353835452,1740084646272,-4636.66,0.00014027,2]
[353835453,1740084646281,-2224.68,0.00014027,2]
[353835454,1740084646291,-500.0,0.00014027,2]
[353835455,1740084646300,-9941.59,0.00014027,2]
[353835456,1740084646311,-1184.99,0.00014027,2]
[353835457,1740084646320,-997.99,0.00014027,2]
[353835458,1740084646332,-500.0,0.00014027,2]
[353835459,1740084646343,-7438.69753278,0.00014063,2]
[353835460,1740084646352,-1125.78062592,0.00014091,2]
[353835461,1740084646361,-3847.21948264,0.00014107,2]
[353835462,1740084646372,-500.0,0.00014109,2]
[353835463,1740084646381,-500.0,0.00014109,2]
[353835464,1740084646391,-500.0,0.00014109,2]
[353835465,1740084646400,-500.0,0.00014109,2]
[353835466,1740084646410,-500.0,0.00014109,2]
[353835467,1740084646419,-500.0,0.00014109,2]
[353835468,1740084646431,-500.0,0.00014109,2]
[353835469,1740084646443,-500.0,0.00014109,2]
[353835470,1740084646452,-500.0,0.00014109,2]
[353835472,1740084646462,-500.0,0.00014109,2]
[353835474,1740084646471,-500.0,0.00014109,2]
[353835475,1740084646480,-500.0,0.00014109,2]
[353835477,1740084646490,-547.65,0.00014109,2]
[353835478,1740084646501,-508.8,0.00014109,2]
[353835479,1740084646512,-500.0,0.00014109,2]
[353835481,1740084646521,-500.0,0.00014109,2]
[353835482,1740084646531,-500.0,0.00014109,2]
[353835483,1740084646540,-500.0,0.00014109,2]
[353835484,1740084646549,-500.0,0.00014109,2]
[353835485,1740084646559,-500.0,0.00014109,2]
[353835486,1740084646568,-500.0,0.00014109,2]
[353835487,1740084646579,-500.0,0.00014109,2]
[353835488,1740084646588,-500.0,0.00014109,2]
[353835489,1740084646597,-500.0,0.00014109,2]
[353835490,1740084646606,-500.0,0.00014109,2]
[353835491,1740084646616,-500.0,0.00014109,2]
[353835492,1740084646627,-500.0,0.00014109,2]
[353835493,1740084646636,-500.0,0.00014109,2]
[353835494,1740084646646,-500.0,0.00014109,2]
[353835495,1740084646656,-500.0,0.00014109,2]
[353835496,1740084646665,-3486.02,0.00014109,2]
[353835497,1740084646674,-570.83,0.00014109,2]
[353835498,1740084646684,-530.13,0.00014109,2]
[353835499,1740084646693,-500.0,0.00014109,2]
[353835500,1740084646703,-500.0,0.00014109,2]
[353835501,1740084646712,-21305.13,0.00014109,2]
[353835502,1740084646721,-500.0,0.00014109,2]
[353835503,1740084646731,-1328.46,0.00014109,2]
[353835504,1740084646741,-815.99,0.00014109,2]
[353835506,1740084646750,-664.11,0.00014109,2]
[353835508,1740084646760,-500.0,0.00014109,2]
[353835510,1740084646769,-680.69,0.00014109,2]
[353835512,1740084646778,-1634.29,0.00014109,2]
[353835513,1740084646787,-688.47,0.00014109,2]
[353835514,1740084646797,-1868.77,0.00014109,2]
[353835515,1740084646806,-500.0,0.00014109,2]
[353835516,1740084646815,-500.0,0.00014109,2]
[353835517,1740084646825,-4052.8,0.00014109,2]
[353835518,1740084646835,-500.0,0.00014109,2]
[353835519,1740084646844,-665.71,0.00014109,2]
[353835520,1740084646854,-2544.88,0.00014109,2]
[353835521,1740084646863,-500.0,0.00014109,2]
[353835522,1740084646873,-2105.17,0.00014109,2]
[353835523,1740084646883,-500.0,0.00014109,2]
[353835524,1740084646893,-1364.24,0.00014109,2]
[353835525,1740084646902,-500.0,0.00014109,2]
[353835526,1740084646911,-500.0,0.00014109,2]
[353835527,1740084646920,-1068.86,0.00014109,2]
[353835528,1740084646929,-500.0,0.00014109,2]
[353835529,1740084646939,-500.0,0.00014109,2]
[353835530,1740084646948,-850.98,0.00014109,2]
[353835531,1740084646957,-1207.04,0.00014109,2]
[353835532,1740084646967,-500.0,0.00014109,2]
[353835533,1740084646976,-1085.19,0.00014109,2]
[353835534,1740084646986,-500.0,0.00014109,2]
[353835535,1740084646995,-1390.83,0.00014109,2]
[353835536,1740084647005,-9513.21,0.00014109,2]
[353835537,1740084647015,-1084.98,0.00014109,2]
[353835538,1740084647025,-500.0,0.00014109,2]
[353835539,1740084647034,-3708.56,0.00014109,2]
[353835540,1740084647044,-500.0,0.00014109,2]
[353835541,1740084647054,-1928.52,0.00014109,2]
[353835542,1740084647064,-500.0,0.00014109,2]
[353835543,1740084647074,-500.0,0.00014109,2]
[353835544,1740084647083,-500.0,0.00014109,2]
[353835545,1740084647093,-500.0,0.00014109,2]
[353835546,1740084647103,-844.51,0.00014109,2]
[353835547,1740084647112,-500.0,0.00014109,2]
[353835548,1740084647122,-500.0,0.00014109,2]
[353835549,1740084647131,-500.0,0.00014109,2]
[353835550,1740084647140,-500.0,0.00014109,2]
[353835551,1740084647151,-500.0,0.00014109,2]
[353835552,1740084647161,-500.0,0.00014109,2]
[353835553,1740084647173,-4636.66,0.00014109,2]
[353835554,1740084647183,-2224.68,0.00014109,2]
[353835555,1740084647193,-500.0,0.00014109,2]
[353835556,1740084647204,-9941.59,0.00014109,2]
[353835557,1740084647214,-1184.99,0.00014109,2]
[353835558,1740084647223,-997.99,0.00014109,2]
[353835559,1740084647233,-500.0,0.00014191,2]
[353835560,1740084647242,-500.0,0.00014191,2]
[353835561,1740084647251,-500.0,0.00014191,2]
[353835562,1740084647261,-500.0,0.00014191,2]
[353835563,1740084647270,-500.0,0.00014191,2]
[353835564,1740084647280,-500.0,0.00014191,2]
[353835565,1740084647289,-500.0,0.00014191,2]
[353835566,1740084647298,-500.0,0.00014191,2]
[353835567,1740084647308,-500.0,0.00014191,2]
[353835568,1740084647318,-500.0,0.00014191,2]
[353835569,1740084647327,-500.0,0.00014191,2]
[353835570,1740084647337,-547.65,0.00014191,2]
[353835571,1740084647349,-508.8,0.00014191,2]
[353835572,1740084647358,-500.0,0.00014191,2]
[353835573,1740084647368,-500.0,0.00014191,2]
[353835574,1740084647379,-500.0,0.00014191,2]
[353835575,1740084647388,-500.0,0.00014191,2]
[353835576,1740084647397,-500.0,0.00014191,2]
[353835577,1740084647406,-500.0,0.00014191,2]
[353835578,1740084647416,-500.0,0.00014191,2]
[353835579,1740084647429,-500.0,0.00014191,2]
[353835580,1740084647440,-500.0,0.00014191,2]
[353835581,1740084647449,-500.0,0.00014191,2]
[353835582,1740084647458,-500.0,0.00014191,2]
[353835583,1740084647467,-500.0,0.00014191,2]
[353835584,1740084647477,-500.0,0.00014191,2]
[353835585,1740084647487,-500.0,0.00014191,2]
[353835586,1740084647499,-441.83645634,0.00014191,2]
[353835587,1740084647509,-3486.02,0.00014191,2]
[353835588,1740084647519,-570.83,0.00014191,2]
[353835589,1740084647528,-530.13,0.00014191,2]
[353835590,1740084647538,-500.0,0.00014191,2]
[353835591,1740084647548,-500.0,0.00014191,2]
[353835592,1740084647558,-21305.13,0.00014191,2]
[353835593,1740084647568,-500.0,0.00014191,2]
[353835594,1740084647577,-1328.46,0.00014191,2]
[353835595,1740084647587,-815.99,0.00014191,2]
[353835596,1740084647597,-664.11,0.00014191,2]
[353835597,1740084647607,-500.0,0.00014191,2]
[353835598,1740084647616,-680.69,0.00014191,2]
[353835599,1740084647626,-1634.29,0.00014191,2]
[353835600,1740084647635,-688.47,0.00014191,2]
[353835601,1740084647645,-1868.77,0.00014191,2]
[353835602,1740084647654,-500.0,0.00014191,2]
[353835603,1740084647664,-500.0,0.00014191,2]
[353835604,1740084647673,-4052.8,0.00014191,2]
[353835605,1740084647681,-500.0,0.00014191,2]
[353835606,1740084647690,-665.71,0.00014191,2]
[353835607,1740084647799,-2544.88,0.00014191,2]
[353835608,1740084647824,-500.0,0.00014191,2]
[353835609,1740084647833,-2105.17,0.00014191,2]
[353835610,1740084647843,-500.0,0.00014191,2]
[353835611,1740084647852,-1364.24,0.00014191,2]
[353835612,1740084647861,-500.0,0.00014191,2]
[353835613,1740084647870,-500.0,0.00014191,2]
[353835614,1740084647879,-1068.86,0.00014191,2]
[353835615,1740084647889,-500.0,0.00014191,2]